bitfinex/quotes_SOLUSD_20241118
["timestamp","ask_amount","ask_price","bid_price","bid_amount"]
[1731898372571,1000.0,239.88,239.83,20.0]
[1731898373372,1000.0,239.88,239.85,20.0]
[1731898374396,1000.0,239.88,239.84,0.12549]
[1731898374691,1000.0,239.88,239.86,0.44465462]
[1731898374899,1000.0,239.88,239.87,20.0]
[1731898375194,1000.0,239.88,239.87,20.25098]
[1731898375396,1000.0,239.88,239.87,20.34465462]
[1731898378485,1000.0,239.88,239.87,0.34465462]
[1731898378687,1000.0,239.88,239.87,26.74980748]
[1731898379697,1000.0,239.88,239.87,26.53064286]
[1731898379907,1000.0,239.88,239.87,26.74980748]
[1731898381307,1000.0,239.88,239.87,26.84980748]
[1731898381600,1000.0,239.88,239.87,26.74980748]
[1731898382499,1000.0,239.88,239.87,26.84980748]
[1731898384676,1000.0,239.88,239.87,0.34465462]
[1731898384907,1000.0,239.88,239.87,26.84980748]
[1731898385106,1000.0,239.88,239.87,20.0]
[1731898385398,1000.0,239.88,239.87,26.40515286]
[1731898385610,1000.0,239.88,239.87,26.49882748]
[1731898385905,989.77897497,239.88,239.87,26.59882748]
[1731898386088,962.97687763,239.88,239.87,26.49882748]
[1731898386476,962.97687763,239.88,239.87,26.62431748]
[1731898386776,962.97687763,239.88,239.87,26.72431748]
[1731898386971,962.97687763,239.88,239.87,0.21916462]
[1731898387176,962.97687763,239.88,239.87,26.72431748]
[1731898387600,962.97687763,239.88,239.87,20.44465462]
[1731898387799,962.97687763,239.88,239.87,26.84980748]
[1731898388375,959.83987763,239.88,239.87,26.84980748]
[1731898389611,959.83987763,239.88,239.87,0.44465462]
[1731898389776,959.83987763,239.88,239.87,26.84980748]
[1731898390800,959.83987763,239.88,239.87,20.34465462]
[1731898390997,959.83987763,239.88,239.87,6.40515286]
[1731898391193,925.09747969,239.88,239.87,6.72431748]
[1731898391439,894.82081669,239.88,239.87,6.82431748]
[1731898391578,894.82081669,239.88,239.87,6.72431748]
[1731898391779,894.82081669,239.88,239.87,6.82431748]
[1731898392112,767.22330181,239.88,239.87,83.56331855]
[1731898392404,767.22330181,239.88,239.87,107.34020255]
[1731898392608,710.74330181,239.88,239.87,107.44020255]
[1731898393477,710.74330181,239.88,239.87,107.34020255]
[1731898393883,710.74330181,239.88,239.87,107.44020255]
[1731898394087,710.74330181,239.88,239.87,107.56569255]
[1731898394300,710.74330181,239.88,239.87,107.46569255]
[1731898394503,710.74330181,239.88,239.87,107.56569255]
[1731898395081,627.503863,239.88,239.87,107.56569255]
[1731898395495,624.803863,239.88,239.87,75.53992825]
[1731898395720,624.803863,239.88,239.87,107.56569255]
[1731898396089,600.003863,239.88,239.87,107.56569255]
[1731898396619,547.003863,239.88,239.87,107.56569255]
[1731898399322,547.003863,239.88,239.87,68.99652825]
[1731898399498,547.003863,239.88,239.87,101.02229255]
[1731898399701,547.003863,239.88,239.87,84.93629255]
[1731898401221,546.878463,239.88,239.87,84.93629255]
[1731898402117,500.60024812,239.88,239.87,84.93629255]
[1731898402300,499.90024812,239.88,239.87,84.93629255]
[1731898405318,496.83324812,239.88,239.87,84.93629255]
[1731898407916,450.55503324,239.88,239.87,84.93629255]
[1731898409032,258.63913324,239.88,239.87,84.93629255]
[1731898409219,256.14863324,239.88,239.87,84.93629255]
[1731898409426,172.82363324,239.88,239.87,84.93629255]
[1731898409640,148.42363324,239.88,239.87,84.93629255]
[1731898410220,127.15431607,239.88,239.87,84.93629255]
[1731898410733,80.87610119,239.88,239.87,84.93629255]
[1731898410928,80.87610119,239.88,239.87,84.83629255]
[1731898416451,34.59788631,239.88,239.87,84.83629255]
[1731898418422,33.98951542,240.0,239.94,0.09367462]
[1731898418621,33.98951542,240.0,239.96,6.40515286]
[1731898420140,33.98951542,240.0,239.95,0.09367462]
[1731898420445,33.98951542,240.0,239.95,0.12549]
[1731898421348,33.98951542,240.0,239.94,20.0]
[1731898421752,6.40515286,239.98,239.88,3.86319788]
[1731898422040,6.40515286,239.98,239.89,6.40515286]
[1731898423147,6.40515286,239.98,239.9,20.0]
[1731898423326,6.40515286,239.98,239.88,3.86319788]
[1731898423533,6.40515286,239.98,239.89,6.40515286]
[1731898423872,10.57215286,239.98,239.89,6.40515286]
[1731898424145,10.57215286,239.98,239.88,3.86319788]
[1731898424358,10.57215286,239.98,239.88,10.26835074]
[1731898424520,6.40515286,239.96,239.88,10.26835074]
[1731898424840,6.0581,239.95,239.88,10.26835074]
[1731898425734,6.40515286,239.89,239.8,0.04]
[1731898425945,6.40515286,239.89,239.8,6.44515286]
[1731898426925,6.40515286,239.89,239.81,20.0]
[1731898427120,6.40515286,239.89,239.8,0.04]
[1731898427447,6.40515286,239.87,239.8,0.04]
[1731898427648,16.4667,239.86,239.8,0.04]
[1731898427846,6.40515286,239.85,239.8,0.04]
[1731898428015,16.4667,239.86,239.8,0.04]
[1731898428220,16.4667,239.86,239.84,6.40515286]
[1731898428756,16.4667,239.86,239.8,0.04]
[1731898429041,16.4667,239.86,239.82,20.0]
[1731898429421,16.4667,239.86,239.8,6.44515286]
[1731898429619,16.4667,239.86,239.8,0.04]
[1731898432126,16.4667,239.86,239.81,6.40515286]
[1731898433047,16.4667,239.86,239.83,6.40515286]
[1731898433254,16.4667,239.86,239.8,0.04]
[1731898433467,16.4667,239.86,239.81,0.25098]
[1731898433765,16.4667,239.86,239.83,6.40515286]
[1731898434877,16.4667,239.86,239.8,0.04]
[1731898435082,16.4667,239.86,239.83,6.40515286]
[1731898435954,16.4667,239.86,239.8,0.04]
[1731898436151,16.4667,239.86,239.81,6.40515286]
[1731898436359,16.4667,239.86,239.8,0.04]
[1731898436563,16.4667,239.86,239.82,0.09367462]
[1731898436749,16.4667,239.86,239.83,6.40515286]
[1731898437660,16.4667,239.86,239.8,0.04]
[1731898437865,16.4667,239.86,239.83,6.40515286]
[1731898438546,6.0581,239.9,239.86,0.25098]
[1731898438753,6.0581,239.9,239.88,6.40515286]
[1731898440050,15.1704,239.97,239.88,6.40515286]
[1731898440251,15.1704,239.97,239.9,6.40515286]
[1731898441670,15.1704,239.97,239.91,20.0]
[1731898441969,15.1704,239.97,239.93,0.25098]
[1731898442476,15.1704,239.97,239.86,20.0]
[1731898442659,6.40515286,239.96,239.87,6.40515286]
[1731898442966,15.1704,239.97,239.89,6.40515286]
[1731898443176,15.1704,239.97,239.91,6.40515286]
[1731898443469,15.1704,239.97,239.92,0.09367462]
[1731898443673,15.1704,239.97,239.91,6.40515286]
[1731898444371,15.1704,239.97,239.92,0.34465462]
[1731898444555,15.1704,239.97,239.94,0.25098]
[1731898446452,15.1704,239.97,239.86,0.1]
[1731898446665,15.1704,239.97,239.84,0.1]
[1731898446977,15.1704,239.97,239.85,0.83340739]
[1731898447156,15.1704,239.97,239.89,20.0]
[1731898447470,21.57555286,239.97,239.87,6.40515286]
[1731898447665,6.40515286,239.95,239.87,6.40515286]
[1731898448247,6.40515286,239.95,239.81,0.09367462]
[1731898448446,6.40515286,239.95,239.86,6.40515286]
[1731898450447,6.40515286,239.95,239.81,0.34465462]
[1731898450657,6.40515286,239.95,239.86,20.0]
[1731898452067,10.57275286,239.95,239.86,26.40515286]
[1731898452379,19.3376,239.97,239.86,26.40515286]
[1731898452555,6.40515286,239.95,239.86,26.40515286]
[1731898453384,6.40515286,239.95,239.89,0.04]
[1731898454177,21.9253,239.9,239.89,0.04]
[1731898456256,15.7398,239.9,239.89,0.04]
[1731898458666,12.59065286,239.96,239.89,0.04]
[1731898458667,21.9253,239.96,239.89,0.04]
[1731898458851,21.9253,239.96,239.9,6.40515286]
[1731898459974,21.9253,239.96,239.89,0.04]
[1731898460174,26.0928,239.96,239.89,0.04]
[1731898460362,6.40515286,239.95,239.89,0.04]
[1731898463881,28.33045286,239.96,239.89,0.04]
[1731898466168,32.49785286,239.96,239.89,0.04]
[1731898466474,28.33045286,239.96,239.89,0.04]
[1731898469577,32.49775286,239.96,239.89,0.04]
[1731898472492,15.7398,239.96,239.89,0.04]
[1731898472790,19.9072,239.96,239.89,0.04]
[1731898473388,6.40515286,239.95,239.89,0.04]
[1731898474371,10.57265286,239.95,239.89,0.04]
[1731898476074,6.40515286,239.95,239.89,0.04]
[1731898476384,10.57265286,239.95,239.89,0.04]
[1731898478875,6.40515286,239.91,239.89,0.04]
[1731898480694,6.50515286,239.91,239.89,0.04]
[1731898481002,4.1684,239.9,239.89,0.04]
[1731898482276,0.1,239.86,239.72,6.50655767]
[1731898482496,0.1,239.86,239.65,16.8806]
[1731898482497,6.40515286,239.8,239.65,16.8806]
[1731898482699,6.40515286,239.8,239.71,6.40515286]
[1731898482884,6.40515286,239.8,239.66,6.50794246]
[1731898483296,6.40515286,239.76,239.65,6.82108567]
[1731898483603,6.40515286,239.76,239.67,6.40515286]
[1731898483903,15.7365,239.81,239.73,6.40515286]
[1731898484277,15.7365,239.81,239.68,0.09367462]
[1731898484478,15.7365,239.81,239.74,6.40515286]
[1731898485605,19.9065,239.81,239.68,0.34465462]
[1731898485902,6.40515286,239.8,239.71,6.40515286]
[1731898486090,6.40515286,239.76,239.68,6.40515286]
[1731898486976,6.40515286,239.76,239.67,6.40515286]
[1731898486977,4.171,239.75,239.67,6.40515286]
[1731898487591,4.171,239.75,239.61,6.50934399]
[1731898487903,4.171,239.75,239.67,6.40515286]
[1731898488208,4.171,239.75,239.69,6.40515286]
[1731898489475,4.171,239.75,239.7,6.40515286]
[1731898490802,4.171,239.75,239.72,6.40515286]
[1731898491005,4.1701,239.8,239.74,6.40515286]
[1731898494390,4.1701,239.8,239.76,6.40515286]
[1731898495695,4.1701,239.8,239.75,6.40515286]
[1731898496579,4.1701,239.8,239.77,6.40515286]
[1731898496897,4.1696,239.83,239.79,6.40515286]
[1731898497400,4.1696,239.83,239.77,6.40515286]
[1731898498508,6.50515286,239.86,239.77,6.40515286]
[1731898498711,4.2692,239.85,239.77,6.40515286]
[1731898499488,4.1692,239.85,239.77,6.40515286]
[1731898499687,4.2692,239.85,239.77,6.40515286]
[1731898500588,6.40515286,239.82,239.68,20.0]
[1731898500814,166.60515286,239.82,239.73,6.40515286]
[1731898501388,166.70515286,239.82,239.73,6.40515286]
[1731898501585,0.2,239.79,239.7,6.40515286]
[1731898501810,160.3,239.79,239.7,6.40515286]
[1731898502608,6.40515286,239.75,239.67,6.40515286]
[1731898503113,6.40515286,239.71,239.57,27.09944368]
[1731898503410,4.1708,239.76,239.67,6.40515286]
[1731898503711,10.57595286,239.76,239.67,6.40515286]
[1731898504524,4.1708,239.76,239.67,6.40515286]
[1731898504713,4.1701,239.8,239.74,6.40515286]
[1731898505996,4.1701,239.8,239.72,6.40515286]
[1731898506592,10.57525286,239.8,239.65,44.12153862]
[1731898506805,10.57525286,239.8,239.71,6.40515286]
[1731898507411,6.40515286,239.78,239.65,20.0]
[1731898507711,6.40515286,239.78,239.7,6.40515286]
[1731898508624,4.1706,239.77,239.7,6.40515286]
[1731898510412,4.1706,239.77,239.65,20.0]
[1731898510727,6.40515286,239.73,239.6,20.0]
[1731898510900,6.40515286,239.73,239.65,6.40515286]
[1731898511429,6.40515286,239.75,239.66,6.40515286]
[1731898512814,4.1708,239.76,239.68,6.40515286]
[1731898513530,4.1708,239.76,239.72,6.40515286]
[1731898513829,6.6026,239.77,239.74,6.40515286]
[1731898514000,160.2,239.79,239.74,6.40515286]
[1731898514201,4.1702,239.8,239.76,6.40515286]
[1731898514627,16.6377,239.81,239.76,6.40515286]
[1731898515110,16.6377,239.81,239.78,6.40515286]
[1731898515828,20.8077,239.81,239.78,6.40515286]
[1731898516209,175.9617,239.87,239.8,6.40515286]
[1731898516422,15.7617,239.87,239.82,6.40515286]
[1731898517305,19.9307,239.87,239.82,6.40515286]
[1731898518033,15.7617,239.87,239.84,6.40515286]
[1731898518326,15.7617,239.87,239.84,10.01159416]
[1731898518538,15.7617,239.93,239.86,10.01159416]
[1731898518831,15.7617,239.93,239.88,10.01159416]
[1731898519421,15.7617,239.93,239.9,10.01159416]
[1731898520732,20.6556,239.98,239.9,10.01159416]
[1731898522711,20.6556,239.98,239.92,10.01159416]
[1731898522712,16.4886,239.98,239.92,10.01159416]
[1731898523107,30.66729416,239.98,239.9,10.01159416]
[1731898524218,10.01159416,239.96,239.9,10.01159416]
[1731898524535,30.66729416,239.98,239.9,10.01159416]
[1731898524710,10.01159416,239.96,239.88,10.01159416]
[1731898527330,10.01159416,239.92,239.77,20.0]
[1731898527515,10.01159416,239.9,239.83,10.01159416]
[1731898527915,10.01159416,239.92,239.83,10.01159416]
[1731898529142,14.17969416,239.92,239.83,10.01159416]
[1731898529306,10.01159416,239.92,239.83,10.01159416]
[1731898529510,14.17939416,239.94,239.85,10.01159416]
[1731898531423,14.17939416,239.94,239.79,0.09367462]
[1731898531637,14.17939416,239.94,239.85,10.01159416]
[1731898533631,10.01159416,239.92,239.83,10.01159416]
[1731898536924,10.01159416,239.92,239.84,0.25098]
[1731898537228,10.01159416,239.92,239.85,10.01159416]
[1731898537918,10.01159416,239.92,239.83,10.01159416]
[1731898538537,16.5886,239.98,239.8,20.0]
[1731898538538,10.01159416,239.88,239.8,20.0]
[1731898539236,10.01159416,239.86,239.8,20.0]
[1731898539642,14.6863,239.95,239.8,20.0]
[1731898539643,10.01159416,239.9,239.81,10.10526878]
[1731898539846,10.01159416,239.92,239.83,10.01159416]
[1731898540539,14.17969416,239.92,239.83,10.01159416]
[1731898544623,10.01159416,239.9,239.81,10.01159416]
[1731898545938,14.17999416,239.9,239.81,10.01159416]
[1731898546347,6.40916716,239.89,239.81,6.40916716]
[1731898549658,6.40916716,239.91,239.84,20.0]
[1731898549959,6.40916716,239.93,239.84,20.0]
[1731898552254,6.40916716,239.93,239.85,6.40916716]
[1731898552441,6.40916716,239.93,239.84,20.0]
[1731898552647,6.40916716,239.93,239.85,6.40916716]
[1731898552835,16.4886,239.98,239.86,20.0]
[1731898553036,6.40916716,239.95,239.86,20.0]
[1731898553760,20.6556,239.98,239.87,6.40916716]
[1731898553943,6.40916716,239.96,239.87,6.40916716]
[1731898556243,6.40916716,239.94,239.82,0.25098]
[1731898556444,4.1671,239.97,239.86,20.0]
[1731898556645,6.40916716,239.94,239.86,20.0]
[1731898559273,6.40916716,239.99,239.9,0.34465462]
[1731898560056,2.64571542,240.0,239.91,6.40916716]
[1731898560260,9.05488258,240.0,239.91,6.40916716]
[1731898563337,6.40916716,239.98,239.91,6.40916716]
[1731898564170,6.40916716,239.98,239.9,0.34465462]
[1731898564465,6.40916716,239.98,239.9,6.75382178]
[1731898565838,6.40916716,239.96,239.88,20.0]
[1731898566047,6.40916716,239.96,239.88,6.40916716]
[1731898568348,2.64571542,240.0,239.9,6.40916716]
[1731898568552,6.40916716,239.99,239.91,0.25098]
[1731898569166,6.40916716,239.99,239.9,6.40916716]
[1731898569360,6.40916716,239.97,239.9,6.40916716]
[1731898569862,6.40916716,239.97,239.87,16.3743]
[1731898569863,6.40916716,239.97,239.88,26.40916716]
[1731898571466,2.64571542,240.0,239.89,0.25098]
[1731898571766,6.40916716,239.98,239.89,0.25098]
[1731898574176,6.81241542,240.0,239.9,26.50284178]
[1731898574177,6.40916716,239.99,239.9,26.50284178]
[1731898574478,6.40916716,239.99,239.91,0.25098]
[1731898574675,2.64571542,240.0,239.91,0.25098]
[1731898574876,6.40916716,239.98,239.91,0.25098]
[1731898575654,6.40916716,239.96,239.91,0.25098]
[1731898575866,6.40916716,239.96,239.88,20.0]
[1731898576173,6.40916716,239.96,239.87,22.78346716]
[1731898576468,6.40916716,239.96,239.88,20.0]
[1731898577570,6.40916716,239.96,239.89,0.25098]
[1731898577758,6.40916716,239.98,239.89,0.25098]
[1731898578554,6.40916716,239.96,239.89,0.25098]
[1731898578754,6.40916716,239.96,239.88,20.0]
[1731898582276,22.95556716,239.96,239.88,20.0]
[1731898582575,22.95556716,239.96,239.87,20.12549]
[1731898584389,6.40916716,239.94,239.86,0.12549]
[1731898584591,6.40916716,239.9,239.83,20.0]
[1731898584762,6.40916716,239.86,239.75,0.7230657]
[1731898584956,6.40916716,239.81,239.66,5.35603967]
[1731898585157,160.3,239.86,239.7,6.40916716]
[1731898585381,6.40916716,239.84,239.75,6.40916716]
[1731898587863,30.0,239.8,239.75,6.40916716]
[1731898588072,30.0,239.8,239.67,6.4965269]
[1731898588285,36.40916716,239.8,239.71,6.40916716]
[1731898588795,36.40916716,239.8,239.66,5.35603967]
[1731898588796,6.40916716,239.78,239.66,5.35603967]
[1731898589102,22.95556716,239.76,239.68,6.40916716]
[1731898589301,16.5464,239.76,239.7,6.40916716]
[1731898593289,16.5464,239.76,239.72,6.40916716]
[1731898593676,16.5464,239.76,239.74,6.40916716]
[1731898593874,16.1411,239.82,239.74,6.40916716]
[1731898594089,16.1411,239.82,239.79,6.40916716]
[1731898594489,16.1411,239.82,239.81,6.40916716]
[1731898594800,16.1411,239.89,239.81,6.40916716]
[1731898595091,16.1411,239.89,239.83,6.40916716]
[1731898596275,16.1411,239.89,239.83,10.01275664]
[1731898596796,20.3098,239.89,239.83,10.01275664]
[1731898597795,10.01275664,239.86,239.77,20.0]
[1731898598302,10.01275664,239.86,239.76,10.01275664]
[1731898598303,0.1,239.85,239.76,10.01275664]
[1731898598501,10.01275664,239.84,239.76,10.01275664]
[1731898599281,10.01275664,239.82,239.74,10.01275664]
[1731898599799,10.01275664,239.8,239.71,10.01275664]
[1731898600197,15.5824,239.79,239.71,10.01275664]
[1731898600508,10.01275664,239.78,239.71,10.01275664]
[1731898603396,10.11275664,239.76,239.58,16.7685]
[1731898603600,10.01275664,239.74,239.66,10.01275664]
[1731898603903,23.776884,239.73,239.64,10.01275664]
[1731898604100,27.948284,239.73,239.64,10.01275664]
[1731898604485,32.01825664,239.79,239.7,10.01275664]
[1731898604704,36.18865664,239.79,239.7,10.01275664]
[1731898605010,36.18865664,239.79,239.72,10.01275664]
[1731898605611,26.1759,239.79,239.72,10.01275664]
[1731898607310,23.776884,239.78,239.7,10.01275664]
[1731898608510,27.947384,239.78,239.7,10.01275664]
[1731898610707,27.947384,239.78,239.65,20.25098]
[1731898610708,22.0055,239.79,239.72,10.01275664]
[1731898611108,22.0055,239.79,239.74,10.01275664]
[1731898611505,22.0055,239.79,239.76,10.01275664]
[1731898612319,15.5824,239.79,239.76,10.01275664]
[1731898616819,15.5824,239.79,239.72,10.01275664]
[1731898617025,15.5824,239.79,239.74,10.01275664]
[1731898617814,15.5824,239.79,239.64,25.58285664]
[1731898617815,4.1704,239.78,239.72,10.01275664]
[1731898618325,4.1704,239.78,239.72,6.41393291]
[1731898618891,15.5824,239.79,239.72,6.41393291]
[1731898619121,19.7527,239.79,239.72,6.41393291]
[1731898620092,15.5824,239.79,239.72,6.41393291]
[1731898620288,15.5824,239.79,239.75,6.41393291]
[1731898621106,15.5824,239.79,239.65,0.34465462]
[1731898621107,15.5824,239.79,239.77,6.41393291]
[1731898621295,26.3686,239.84,239.77,6.41393291]
[1731898621519,22.1991,239.84,239.77,6.41393291]
[1731898621723,22.1991,239.84,239.79,6.41393291]
[1731898622922,15.6052,239.84,239.79,6.41393291]
[1731898623131,15.6052,239.84,239.81,6.41393291]
[1731898627923,15.6052,239.84,239.79,6.41393291]
[1731898629527,23.776884,239.83,239.66,6.7683]
[1731898629705,23.776884,239.83,239.75,6.41393291]
[1731898629907,15.6052,239.84,239.79,6.41393291]
[1731898635843,15.4102,239.93,239.83,6.41393291]
[1731898636146,19.5781,239.93,239.86,6.41393291]
[1731898636643,15.4102,239.93,239.88,6.41393291]
[1731898637012,6.7285,239.95,239.88,6.41393291]
[1731898637713,6.7285,239.95,239.9,6.41393291]
[1731898637930,6.7285,239.95,239.88,6.41393291]
[1731898638134,30.19081691,239.94,239.79,0.25098]
[1731898638342,30.19081691,239.94,239.84,6.41393291]
[1731898639839,6.41393291,239.86,239.69,6.5123]
[1731898640137,6.41393291,239.84,239.75,6.41393291]
[1731898640323,6.41393291,239.82,239.73,6.41393291]
[1731898642214,166.6426,239.85,239.77,10.01771792]
[1731898643219,166.6426,239.85,239.79,10.01771792]
[1731898643420,6.4426,239.85,239.79,10.01771792]
[1731898644537,10.01771792,239.88,239.79,10.01771792]
[1731898644835,15.4693,239.89,239.85,10.01771792]
[1731898645018,15.4693,239.89,239.83,10.01771792]
[1731898645743,15.4693,239.89,239.85,10.01771792]
[1731898646045,15.4693,239.89,239.83,10.01771792]
[1731898646535,15.4693,239.89,239.64,4.27993033]
[1731898646536,10.01771792,239.84,239.64,4.27993033]
[1731898646739,10.01771792,239.84,239.76,10.01771792]
[1731898647237,160.2,239.87,239.8,10.01771792]
[1731898647620,164.3689,239.87,239.8,10.01771792]
[1731898648029,164.3689,239.87,239.78,10.01771792]
[1731898648332,15.4693,239.81,239.66,6.49328715]
[1731898648545,15.4693,239.81,239.72,10.01771792]
[1731898648744,15.4693,239.81,239.74,10.01771792]
[1731898650919,10.01771792,239.78,239.7,10.01771792]
[1731898652718,15.4693,239.81,239.74,10.01771792]
[1731898653130,19.6393,239.81,239.72,10.01771792]
[1731898653439,23.776884,239.77,239.65,20.0]
[1731898653627,10.01771792,239.76,239.69,20.0]
[1731898656147,164.3704,239.79,239.7,10.01771792]
[1731898656336,14.18811792,239.79,239.7,10.01771792]
[1731898656845,40.23720192,239.8,239.7,10.01771792]
[1731898657044,34.389684,239.8,239.7,10.01771792]
[1731898657231,44.40740192,239.8,239.7,10.01771792]
[1731898657541,44.40740192,239.8,239.69,20.0]
[1731898657542,44.40740192,239.8,239.72,10.01771792]
[1731898658123,44.50740192,239.8,239.7,10.01771792]
[1731898658446,10.01771792,239.77,239.69,20.0]
[1731898658933,10.01771792,239.77,239.68,10.01771792]
[1731898660041,10.01771792,239.77,239.7,10.01771792]
[1731898662340,10.01771792,239.77,239.68,10.01771792]
[1731898662525,10.01771792,239.77,239.55,7.40421037]
[1731898662526,10.01771792,239.73,239.65,20.0]
[1731898664138,10.01771792,239.71,239.64,10.01771792]
[1731898664352,10.01771792,239.71,239.63,20.0]
[1731898665340,10.01771792,239.67,239.6,10.01771792]
[1731898665752,10.01771792,239.67,239.51,22.9315]
[1731898665753,15.9962,239.61,239.42,22.9315]
[1731898665924,15.9962,239.61,239.53,10.01771792]
[1731898666423,15.9962,239.61,239.55,10.01771792]
[1731898667550,15.9962,239.61,239.57,10.01771792]
[1731898667721,170.21771792,239.65,239.59,10.01771792]
[1731898667924,15.9962,239.67,239.61,10.01771792]
[1731898669630,23.776884,239.66,239.59,10.01771792]
[1731898670025,23.776884,239.66,239.53,0.12549]
[1731898670026,15.9962,239.67,239.61,10.01771792]
[1731898673255,15.9962,239.67,239.63,10.01771792]
[1731898673550,16.3438,239.73,239.65,10.01771792]
[1731898673758,20.5152,239.73,239.65,10.01771792]
[1731898674156,10.01771792,239.7,239.61,10.01771792]
[1731898675453,14.18961792,239.7,239.61,10.01771792]
[1731898675964,23.776884,239.69,239.61,10.01771792]
[1731898676531,10.01771792,239.7,239.62,20.0]
[1731898676732,4.1717,239.71,239.63,10.01771792]
[1731898677030,23.776884,239.71,239.65,10.01771792]
[1731898677453,16.3438,239.73,239.65,10.01771792]
[1731898678254,10.01771792,239.72,239.63,10.01771792]
[1731898680958,10.01771792,239.72,239.61,10.01771792]
[1731898680959,23.776884,239.69,239.61,10.01771792]
[1731898682040,27.948984,239.69,239.61,10.01771792]
[1731898682240,27.948984,239.69,239.55,0.34465462]
[1731898682443,27.948984,239.69,239.6,10.01771792]
[1731898682956,27.948984,239.69,239.62,10.01771792]
[1731898684182,160.2,239.68,239.54,20.0]
[1731898684348,23.776884,239.67,239.6,10.01771792]
[1731898685056,23.776884,239.67,239.54,20.0]
[1731898685057,160.2,239.68,239.66,10.01771792]
[1731898685261,23.776884,239.71,239.65,10.01771792]
[1731898685460,4.1715,239.72,239.65,10.01771792]
[1731898686240,4.1715,239.72,239.67,10.01771792]
[1731898689869,23.776884,239.71,239.65,10.01771792]
[1731898691266,23.776884,239.69,239.65,10.01771792]
[1731898692066,23.776884,239.69,239.63,10.01771792]
[1731898693162,4.1722,239.68,239.63,10.01771792]
[1731898693363,23.776884,239.67,239.63,10.01771792]
[1731898694272,27.949384,239.67,239.63,10.01771792]
[1731898694649,27.949384,239.67,239.53,6.7357]
[1731898694871,23.776884,239.65,239.59,10.01771792]
[1731898695851,23.776884,239.62,239.47,6.414]
[1731898696170,183.976884,239.62,239.56,10.01771792]
[1731898696387,23.776884,239.6,239.56,10.01771792]
[1731898696748,23.776884,239.6,239.45,16.406]
[1731898696749,160.2,239.59,239.54,10.01771792]
[1731898696961,160.2,239.59,239.56,10.01771792]
[1731898698465,160.2,239.59,239.58,10.01771792]
[1731898699077,160.2,239.67,239.58,10.01771792]
[1731898699252,20.169,239.69,239.61,10.01771792]
[1731898700359,15.9969,239.69,239.63,10.01771792]
[1731898701966,23.776884,239.68,239.56,20.0]
[1731898702167,23.776884,239.68,239.63,10.01771792]
[1731898703868,160.2,239.7,239.67,10.01771792]
[1731898704849,164.3719,239.7,239.67,10.01771792]
[1731898705270,160.2,239.7,239.67,10.01771792]
[1731898705788,23.776884,239.69,239.67,10.01771792]
[1731898705966,23.776884,239.69,239.65,10.01771792]
[1731898708358,4.1719,239.7,239.66,6.41799358]
[1731898708552,16.427,239.75,239.68,6.41799358]
[1731898708753,4.1712,239.74,239.59,20.34465462]
[1731898708973,4.1712,239.74,239.7,6.41799358]
[1731898709473,176.627,239.75,239.72,6.41799358]
[1731898709655,176.627,239.75,239.65,20.0]
[1731898709850,16.427,239.75,239.72,6.41799358]
[1731898710488,6.41799358,239.8,239.6,0.09367462]
[1731898710489,164.3698,239.82,239.67,20.0]
[1731898710689,0.09367462,239.8,239.74,10.02289228]
[1731898710887,160.2,239.79,239.74,10.02289228]
[1731898711270,4.1698,239.82,239.76,10.02289228]
[1731898711671,160.2,239.84,239.78,10.02289228]
[1731898711867,164.3694,239.85,239.8,10.02289228]
[1731898712092,4.1694,239.85,239.8,10.02289228]
[1731898712669,160.2,239.87,239.8,10.02289228]
[1731898712993,164.369,239.87,239.8,10.02289228]
[1731898713987,16.427,239.89,239.82,10.02289228]
[1731898714217,4.1683,239.91,239.82,10.02289228]
[1731898714396,0.09367462,239.89,239.82,10.02289228]
[1731898714577,0.09367462,239.89,239.68,23.87055862]
[1731898714578,10.02289228,239.86,239.71,36.57999]
[1731898714779,10.02289228,239.86,239.77,10.02289228]
[1731898714780,0.09367462,239.85,239.77,10.02289228]
[1731898715009,0.09367462,239.83,239.75,10.02289228]
[1731898715310,0.09367462,239.83,239.77,10.02289228]
[1731898715311,23.776884,239.83,239.77,10.02289228]
[1731898715589,23.776884,239.83,239.79,10.02289228]
[1731898715803,160.2,239.84,239.79,10.02289228]
[1731898716898,160.2,239.84,239.71,16.4545]
[1731898717073,19.8115,239.85,239.72,20.0]